bitfinex/quotes_SOLUSD_20250118
["timestamp","ask_amount","ask_price","bid_price","bid_amount"]
[1737231835250,19.111899,255.25,255.18,0.58771577]
[1737231835451,19.111899,255.21,255.11,19.111899]
[1737231835656,19.111899,255.17,255.09,1.6181]
[1737231835863,0.58781502,255.16,255.09,1.6181]
[1737231836153,19.111899,255.17,255.1,0.58794967]
[1737231836543,0.58781502,255.16,255.09,2.20602099]
[1737231836755,19.111899,255.17,255.09,2.20602099]
[1737231837138,19.69971402,255.19,255.09,21.31791999]
[1737231837752,23.61831402,255.19,255.09,21.31791999]
[1737231838252,19.69971402,255.19,255.09,21.31791999]
[1737231840151,19.111899,255.15,255.07,0.063]
[1737231840357,0.58781502,255.14,255.07,0.063]
[1737231841347,12.58565444,255.14,255.07,0.063]
[1737231842139,23.776884,255.13,255.07,0.063]
[1737231842345,11.99783942,255.08,255.07,0.063]
[1737231842543,35.77472342,255.08,255.07,0.063]
[1737231842745,20.0,255.05,254.93,0.063]
[1737231843045,20.58781502,255.04,254.94,3.9224]
[1737231843253,32.58565444,255.04,254.95,12.58607312]
[1737231843445,32.58565444,255.04,254.96,3.9221]
[1737231843446,19.79894643,255.04,254.96,3.9221]
[1737231847260,19.21113141,254.97,254.93,0.063]
[1737231847453,0.58781502,254.96,254.93,0.063]
[1737231847655,19.21113141,255.0,254.93,0.063]
[1737231847959,0.58781502,254.99,254.93,0.063]
[1737231848451,19.21113141,255.06,254.96,19.21113141]
[1737231848656,19.21113141,255.06,254.93,4.57384981]
[1737231848657,19.21113141,255.08,254.98,19.21113141]
[1737231848859,0.58781502,255.07,254.99,0.58810936]
[1737231849661,19.21113141,255.06,255.0,3.9215]
[1737231850245,19.79894643,255.06,255.0,3.9215]
[1737231850561,19.21113141,255.06,254.97,0.58817822]
[1737231850763,19.21113141,255.06,254.98,3.9218]
[1737231850945,19.21113141,255.06,254.99,0.58814935]
[1737231851355,0.58781502,255.05,254.98,3.9218]
[1737231852044,19.21113141,255.06,254.99,0.58820075]
[1737231852258,23.776884,255.05,254.99,0.58820075]
[1737231852557,19.21113141,255.04,254.95,19.7994149]
[1737231852760,19.21113141,255.06,254.95,19.7994149]
[1737231853261,0.58781502,255.05,254.97,19.21113141]
[1737231853563,19.21113141,255.08,254.98,0.58818749]
[1737231853748,19.21113141,255.04,254.97,0.58814135]
[1737231853937,13.7201,255.1,254.93,0.063]
[1737231853938,19.21113141,255.0,254.93,0.063]
[1737231854138,19.21113141,254.98,254.93,0.063]
[1737231854369,19.21113141,254.96,254.93,0.063]
[1737231854664,0.58781502,254.95,254.93,0.063]
[1737231855047,19.21113141,254.94,254.93,0.063]
[1737231855259,42.98801541,254.94,254.93,0.063]
[1737231855451,26.0999,254.9,254.87,0.063]
[1737231855760,42.98801541,254.88,254.87,0.063]
[1737231856460,46.91141541,254.88,254.87,0.063]
[1737231857163,19.21113141,254.88,254.87,0.063]
[1737231857467,19.21113141,254.92,254.87,0.063]
[1737231857658,0.58781502,254.93,254.87,0.063]
[1737231857851,19.21113141,254.9,254.87,0.063]
[1737231858055,19.21113141,254.88,254.87,0.063]
[1737231858563,19.21113141,254.9,254.87,0.063]
[1737231858765,0.58781502,254.89,254.87,0.063]
[1737231858963,19.21113141,254.9,254.87,0.063]
[1737231859148,0.58781502,254.89,254.87,0.063]
[1737231859350,19.21113141,254.88,254.87,0.063]
[1737231859765,19.79894643,254.88,254.87,0.063]
[1737231860775,19.21113141,254.88,254.87,0.063]
[1737231861066,19.79894643,254.88,254.87,0.063]
[1737231861858,42.98801541,254.88,254.87,0.063]
[1737231862058,19.79894643,254.88,254.87,0.063]
[1737231862664,43.57583043,254.88,254.87,0.063]
[1737231864348,23.776884,254.83,254.66,19.21113141]
[1737231864562,19.21113141,254.76,254.67,0.58889105]
[1737231864763,19.21113141,254.7,254.63,3.9272]
[1737231864967,19.21113141,254.7,254.63,4.51620424]
[1737231865270,19.21113141,254.7,254.63,3.9272]
[1737231865468,0.58781502,254.69,254.62,1.6219]
[1737231865767,19.21113141,254.7,254.63,0.58905039]
[1737231865971,0.58781502,254.69,254.62,5.5492]
[1737231866159,0.58781502,254.69,254.62,1.6219]
[1737231866672,19.21113141,254.68,254.62,1.6219]
[1737231866848,19.21113141,254.66,254.61,0.063]
[1737231867054,0.58781502,254.65,254.61,0.063]
[1737231869961,19.21113141,254.68,254.61,0.063]
[1737231870155,19.21113141,254.74,254.63,19.21113141]
[1737231870353,19.21113141,254.74,254.61,3.9905]
[1737231870354,0.58781502,254.73,254.65,19.21113141]
[1737231870565,0.58781502,254.73,254.66,0.58893564]
[1737231870865,0.58781502,254.73,254.65,19.21113141]
[1737231871166,0.58781502,254.73,254.66,0.58900167]
[1737231871868,0.58781502,254.73,254.62,3.9274]
[1737231871869,0.58781502,254.73,254.63,0.58893129]
[1737231872072,0.58781502,254.73,254.64,19.21113141]
[1737231872277,19.21113141,254.82,254.71,19.21113141]
[1737231872479,19.21113141,254.84,254.73,19.21113141]
[1737231872782,0.58781502,254.83,254.75,3.9254]
[1737231873072,19.21113141,254.84,254.76,0.3839525]
[1737231873269,19.21113141,254.86,254.77,19.21113141]
[1737231873457,0.03,254.93,254.84,19.21113141]
[1737231873650,0.03,254.93,254.81,20.0]
[1737231873651,0.03,254.93,254.87,19.21113141]
[1737231874054,0.03,254.93,254.89,19.21113141]
[1737231874256,0.03,254.93,254.9,0.38310792]
[1737231874652,0.03,254.93,254.91,3.9229]
[1737231875360,0.03,254.93,254.92,0.38306704]
[1737231875765,19.21113141,255.06,254.96,19.21113141]
[1737231876071,0.73521915,255.05,254.97,0.38262329]
[1737231876378,19.21113141,255.08,254.98,19.21113141]
[1737231876571,0.73517966,255.07,254.99,0.3825443]
[1737231876783,0.73517966,255.07,255.0,3.9215]
[1737231877157,19.21113141,255.12,255.02,19.21113141]
[1737231877475,19.21113141,255.12,255.03,0.38231223]
[1737231877773,0.73506363,255.16,255.09,19.21113141]
[1737231878074,0.76483989,255.19,255.11,19.21113141]
[1737231878465,19.9759713,255.19,255.09,19.21113141]
[1737231878651,19.9759713,255.19,255.1,0.38188122]
[1737231878862,19.9759713,255.19,255.1,4.30178122]
[1737231879480,0.03,255.19,255.11,19.21113141]
[1737231879657,0.03,255.19,255.12,0.381776]
[1737231880177,0.03,255.19,255.13,19.21113141]
[1737231880379,19.24113141,255.19,255.1,3.9199]
[1737231880677,19.24113141,255.19,255.11,0.38189723]
[1737231880880,19.24113141,255.19,255.11,0.38186965]
[1737231881060,0.03,255.19,255.11,19.59300106]
[1737231881461,0.03,255.19,255.13,19.21113141]
[1737231881659,0.03,255.19,255.14,0.38168495]
[1737231884860,0.03,255.19,255.11,19.21113141]
[1737231885066,19.21113141,255.18,255.09,19.21113141]
[1737231885265,4.65380815,255.17,255.09,39.21113141]
[1737231885473,4.65380815,255.17,255.07,19.59300571]
[1737231885683,19.21113141,255.16,255.07,0.38204417]
[1737231885882,0.73498977,255.15,255.07,0.38204417]
[1737231886588,0.73498977,255.15,255.09,20.0]
[1737231887081,0.73498977,255.15,255.08,19.21113141]
[1737231887289,8.0485023,255.14,255.11,19.21113141]
[1737231887473,9.99991222,254.88,254.87,0.0001]
[1737231887661,4.99991222,254.72,254.61,6.17579763]
[1737231887864,4.99991222,254.64,254.61,6.17579763]
[1737231888080,19.21113141,254.64,254.61,0.063]
[1737231888277,9.99991222,254.68,254.61,0.063]
[1737231888278,19.21113141,254.68,254.61,0.063]
[1737231888666,19.21113141,254.7,254.66,0.063]
[1737231888984,19.21113141,254.68,254.66,0.063]
[1737231889191,19.21113141,254.68,254.61,0.063]
[1737231889192,24.21104363,254.68,254.61,0.05673992]
[1737231889400,19.21113141,254.66,254.56,19.21113141]
[1737231889683,19.21113141,254.66,254.56,5.56007131]
[1737231889995,19.21113141,254.68,254.56,5.56007131]
[1737231890483,19.21113141,254.68,254.58,19.21113141]
[1737231890678,19.21113141,254.7,254.58,19.21113141]
[1737231891070,19.21113141,254.74,254.67,20.0]
[1737231891274,5.0,254.79,254.68,20.0]
[1737231891275,24.21104363,254.76,254.68,20.0]
[1737231891469,19.21113141,254.76,254.68,20.0]
[1737231891870,19.21113141,254.78,254.67,39.21113141]
[1737231892395,19.21113141,254.8,254.69,19.21113141]
[1737231892576,19.21113141,254.8,254.69,18.71113141]
[1737231892892,19.21113141,254.8,254.71,19.21113141]
[1737231893188,4.99991222,254.82,254.67,20.0]
[1737231893189,19.21113141,254.77,254.7,20.0]
[1737231894182,19.21113141,254.79,254.7,20.0]
[1737231894395,19.21113141,254.79,254.7,23.776884]
[1737231894594,19.21113141,254.77,254.69,3.9262]
[1737231896491,19.21113141,254.79,254.72,20.0]
[1737231896986,19.21113141,254.79,254.71,20.0]
[1737231898294,19.21113141,254.72,254.63,19.21113141]
[1737231898481,19.21113141,254.74,254.64,19.21113141]
[1737231898682,4.99991222,254.77,254.67,19.21113141]
[1737231899193,5.0,254.76,254.67,19.21113141]
[1737231899502,4.99991222,254.77,254.69,19.21113141]
[1737231899993,0.1025,254.76,254.69,19.21113141]
[1737231900573,28.23893141,254.76,254.66,3.9267]
[1737231900895,4.99991222,254.75,254.65,23.13793141]
[1737231901098,0.1025,254.74,254.69,19.21113141]
[1737231901796,0.1025,254.74,254.71,0.063]
[1737231903304,0.1025,254.74,254.73,39.21113141]
[1737231904193,4.99991222,254.87,254.77,20.0]
[1737231904375,9.99991222,254.89,254.79,19.21113141]
[1737231905000,9.99991222,254.89,254.81,19.21113141]
[1737231905205,5.0,254.89,254.81,19.21113141]
[1737231905495,4.99991222,254.87,254.81,19.21113141]
[1737231905697,4.99991222,254.84,254.76,3.9251]
[1737231905895,4.99991222,254.84,254.76,23.13623141]
[1737231906098,5.0,254.78,254.72,19.21113141]
[1737231906296,4.99991222,254.81,254.72,23.13683141]
[1737231906492,24.21104363,254.81,254.72,23.13683141]
[1737231906689,4.99991222,254.79,254.72,3.9257]
[1737231906891,4.99991222,254.79,254.72,23.13683141]
[1737231907094,5.0,254.77,254.72,3.9257]
[1737231907399,9.99991222,254.8,254.72,3.9257]
[1737231908799,5.0,254.77,254.72,3.9257]
[1737231908980,4.99991222,254.76,254.72,3.9257]
[1737231909700,29.21104363,254.77,254.72,3.9257]
[1737231910078,29.21104363,254.77,254.71,0.063]
[1737231910079,9.99991222,254.72,254.71,0.063]
[1737231910282,3.9251,254.77,254.71,0.063]
[1737231910283,19.21113141,254.77,254.71,0.063]
[1737231910489,19.21113141,254.77,254.71,23.9889]
[1737231911493,24.21104363,254.85,254.75,19.21113141]
[1737231911679,5.0,254.88,254.8,20.0]
[1737231911880,5.0,254.83,254.75,19.21113141]
[1737231912091,24.21113141,254.83,254.73,19.21113141]
[1737231912304,24.21113141,254.83,254.76,20.0]
[1737231913289,24.21113141,254.81,254.76,20.0]
[1737231913495,24.21113141,254.81,254.76,23.9251]
[1737231913690,19.21113141,254.81,254.76,23.9251]
[1737231914987,4.99991222,254.82,254.76,23.9251]
[1737231915190,24.24104363,254.83,254.76,23.9251]
[1737231915401,5.02991222,254.83,254.76,3.9251]
[1737231915699,0.03,254.83,254.76,3.9251]
[1737231915899,5.0,254.81,254.76,3.9251]
[1737231916408,4.99991222,254.8,254.76,3.9251]
[1737231916984,24.24113141,254.83,254.73,19.21113141]
[1737231917194,24.24113141,254.83,254.74,3.9255]
[1737231917800,24.24113141,254.83,254.74,13.7394]
[1737231918008,19.24113141,254.83,254.74,13.7394]
[1737231918186,24.24113141,254.83,254.74,13.7394]
[1737231918387,5.0,254.81,254.74,13.7394]
[1737231921205,4.99991222,254.82,254.74,13.7394]
[1737231921500,4.99991222,254.81,254.74,13.7394]
[1737231921696,4.52991222,254.83,254.75,19.21113141]
[1737231922086,0.03,254.83,254.75,19.21113141]
[1737231922493,5.03,254.83,254.75,19.21113141]
[1737231922690,5.0,254.77,254.74,3.9255]
[1737231923103,9.49991222,254.79,254.74,3.9255]
[1737231923703,5.0,254.77,254.74,3.9255]
[1737231924408,5.0,254.75,254.74,3.9255]
[1737231925001,5.0,254.75,254.71,0.063]
[1737231925002,9.49991222,254.72,254.71,0.063]
[1737231925206,28.71104363,254.72,254.71,0.063]
[1737231926317,9.49991222,254.7,254.69,0.063]
[1737231926500,4.49991222,254.58,254.52,3.9289]
[1737231926816,5.0,254.57,254.52,3.9289]
[1737231926994,19.21113141,254.67,254.42,19.21113141]
[1737231926995,5.0,254.49,254.42,19.21113141]
[1737231927191,5.0,254.49,254.4,19.21113141]
[1737231928005,5.0,254.48,254.4,19.21113141]
[1737231928214,5.0,254.47,254.4,19.21113141]
[1737231928513,5.0,254.42,254.38,19.21113141]
[1737231928895,9.49991222,254.46,254.38,19.21113141]
[1737231929091,5.0,254.44,254.38,19.21113141]
[1737231929622,5.0,254.42,254.38,19.21113141]
[1737231929825,19.21113141,254.47,254.38,19.21113141]
[1737231930119,5.0,254.47,254.38,19.21113141]
[1737231930310,5.0,254.47,254.39,3.9309]
[1737231930699,5.0,254.42,254.39,3.9309]
[1737231931112,9.49991222,254.44,254.39,23.9309]
[1737231931515,5.0,254.41,254.39,23.9309]
[1737231931710,5.0,254.43,254.39,23.9309]
[1737231933415,9.49991222,254.4,254.34,19.21113141]
[1737231933615,5.0,254.36,254.35,3.9315]
[1737231935229,5.0,254.32,254.26,13.7651]
[1737231935397,5.0,254.34,254.27,19.21113141]
[1737231935916,5.0,254.34,254.3,20.0]
[1737231936321,5.0,254.34,254.29,19.21113141]
[1737231936824,9.49991222,254.34,254.29,19.21113141]
[1737231937016,5.0,254.34,254.3,3.9323]
[1737231937911,9.49991222,254.34,254.3,3.9323]
[1737231938214,5.0,254.34,254.3,3.9323]
[1737231938803,9.49991222,254.34,254.3,3.9323]
[1737231939325,9.49991222,254.4,254.34,20.0]
[1737231939512,5.0,254.31,254.25,21.90362029]
[1737231939708,5.0,254.29,254.26,3.9329]
[1737231939913,3.96260577,254.29,254.26,3.9329]
[1737231940240,8.46251799,254.26,254.25,1.16882469]
[1737231940405,27.6736494,254.26,254.25,1.16882469]
[1737231941110,31.6065494,254.26,254.25,1.16882469]
[1737231941314,27.6736494,254.26,254.25,1.16882469]
[1737231941709,28.41128496,254.26,254.25,1.16882469]
[1737231942116,52.18816896,254.26,254.25,1.16882469]
[1737231942834,3.96260577,254.08,254.05,3.9362]
[1737231943025,3.96260577,254.12,254.06,19.21113141]
[1737231943325,3.96260577,254.14,254.08,19.21113141]
[1737231943523,3.96260577,254.17,254.1,19.21113141]
[1737231944203,19.21113141,254.19,254.1,19.21113141]
[1737231944204,3.96260577,254.18,254.1,19.21113141]
[1737231944414,8.46251799,254.18,254.1,19.21113141]
[1737231944605,4.49991222,254.16,254.1,19.21113141]
[1737231944820,3.96260577,254.18,254.1,19.21113141]
[1737231945211,3.96260577,254.18,254.11,3.9353]
[1737231945807,8.46251799,254.2,254.14,19.21113141]
[1737231946117,8.46251799,254.2,254.12,19.21113141]
[1737231946303,4.49991222,254.18,254.12,19.21113141]
[1737231947011,3.96260577,254.19,254.14,19.21113141]
[1737231947221,3.96260577,254.24,254.16,19.21113141]
[1737231947427,4.49991222,254.23,254.18,19.21113141]
[1737231947728,8.46251799,254.24,254.18,19.21113141]
[1737231947927,4.49991222,254.21,254.16,19.21113141]
[1737231948424,19.21113141,254.27,254.15,13.7713]
[1737231948425,4.49991222,254.25,254.18,19.21113141]
[1737231948820,3.96260577,254.23,254.18,19.21113141]
[1737231949328,3.96260577,254.23,254.21,20.0]
[1737231949524,4.49991222,254.27,254.22,19.21113141]
[1737231950238,4.49991222,254.27,254.22,20.0]
[1737231950412,4.49991222,254.27,254.23,20.0]
[1737231950609,3.96260577,254.24,254.2,19.21113141]
[1737231950912,4.49991222,254.25,254.19,13.7691]
[1737231951528,4.49991222,254.25,254.2,19.21113141]
[1737231951731,4.49991222,254.27,254.2,19.21113141]
[1737231951913,3.96260577,254.28,254.19,3.934]
[1737231951914,3.96260577,254.22,254.19,3.934]
[1737231952236,3.96260577,254.2,254.18,20.0]
[1737231952434,20.0,254.16,254.1,6.56e-05]
[1737231952646,20.0,254.16,253.52,1.5179]
[1737231952647,5.0,253.72,253.43,30.0]
[1737231952934,5.0,253.64,253.55,0.02560396]
[1737231953109,5.0,253.57,253.53,6.06580885]
[1737231953405,5.0,253.54,253.53,6.06580885]
[1737231953605,24.21113141,253.54,253.53,6.06580885]
[1737231953809,5.0,253.51,253.5,12.1316177]
[1737231954014,5.0,253.39,253.38,13.813]
[1737231954216,19.21113141,253.39,253.38,3.9466]
[1737231954528,19.21113141,253.41,253.38,3.9466]
[1737231954845,5.0,253.34,253.33,500.0]
[1737231955022,24.21113141,253.34,253.33,500.0]
[1737231955332,36.64836251,253.34,253.33,486.29015056]
[1737231955630,36.64836251,253.34,252.82,1.5179]
[1737231955631,5.0,253.18,252.82,1.5179]
[1737231955935,31.64836251,252.92,252.85,9.8871]
[1737231956139,0.74077187,253.17,252.83,3.9552]
[1737231956432,5.0,253.0,252.83,3.9552]
[1737231956939,5.0,253.05,252.83,3.9552]
[1737231957121,5.0,252.99,252.87,31.64836251]
[1737231957458,5.0,253.01,252.98,36.64836251]
[1737231957627,5.0,253.1,253.01,20.0]
[1737231957933,5.0,253.07,252.95,31.64836251]
[1737231958237,5.0,252.92,252.53,31.20858317]
[1737231958437,0.74147775,252.91,252.66,30.0]
[1737231958638,3.05096329,252.98,252.8,1.94903671]
[1737231958816,5.0,253.02,252.81,6.6558]
[1737231959016,5.0,252.98,252.86,1.94903671]
[1737231959213,5.0,252.97,252.96,31.64836251]
[1737231959423,5.0,252.97,252.81,6.6558]
[1737231959424,3.05096329,252.95,252.91,31.64836251]
[1737231959619,3.05096329,252.99,252.94,31.64836251]
[1737231959819,8.05096329,252.99,252.98,31.64836251]
[1737231960036,8.05096329,252.99,252.85,31.64836251]
[1737231960037,5.0,252.89,252.85,31.64836251]
[1737231960333,3.05096329,252.75,252.69,9.8933]
[1737231960536,3.05096329,252.86,252.68,1.94903671]
[1737231960721,8.05096329,252.84,252.83,31.64836251]
[1737231960921,5.0,252.79,252.75,31.64836251]
[1737231961236,5.0,252.79,252.77,31.64836251]
[1737231961538,8.05096329,252.81,252.78,3.956]
[1737231961728,5.0,252.83,252.79,31.64836251]
[1737231961931,8.05096329,252.77,252.73,3.9567]
[1737231962129,36.64836251,252.94,252.76,31.64836251]
[1737231962130,3.05096329,252.79,252.76,31.64836251]
[1737231962333,8.05096329,252.79,252.78,31.64836251]
[1737231962722,5.0,252.9,252.78,63.29672502]
[1737231962916,8.05096329,252.92,252.85,31.64836251]
[1737231963240,3.05096329,252.85,252.73,13.8486]
[1737231963418,8.05096329,252.92,252.63,33.6458]
[1737231963619,8.05096329,252.88,252.64,0.72378539]
[1737231963836,5.0,252.79,252.67,19.788]
[1737231964034,5.0,252.8,252.67,19.788]
[1737231964237,3.05096329,252.8,252.63,33.6458]
[1737231964429,4.69516564,252.94,252.63,33.6458]
[1737231964430,5.0,252.75,252.63,33.6458]
[1737231964738,5.0,252.75,252.74,31.64836251]
[1737231964959,3.05096329,252.76,252.74,31.64836251]
[1737231965239,3.0,252.75,252.74,31.64836251]
[1737231965431,3.05096329,252.8,252.75,3.9564]
[1737231965743,3.05096329,252.84,252.79,31.64836251]
[1737231965933,6.05096329,252.84,252.82,31.64836251]
[1737231966126,3.05096329,252.84,252.82,31.64836251]
[1737231966326,3.0,252.83,252.82,31.64836251]
[1737231967146,3.05096329,252.71,252.64,9.8953]
[1737231967326,3.05096329,252.79,252.67,20.0]
[1737231967530,3.05096329,252.83,252.67,20.0]
[1737231967839,3.05096329,252.82,252.67,20.0]
[1737231968138,3.0,252.82,252.75,20.0]
[1737231968331,3.0,252.8,252.64,9.8953]
[1737231968637,3.05096329,252.85,252.79,63.29672502]
[1737231968950,3.0,252.82,252.72,31.64836251]
[1737231969239,3.05096329,252.78,252.72,31.64836251]
[1737231969545,3.05096329,252.78,252.73,3.9567]
[1737231970127,6.05096329,252.74,252.73,3.9567]
[1737231970329,3.0,252.74,252.73,35.60506251]
[1737231971027,3.05096329,252.73,252.72,31.64836251]
[1737231971230,3.05096329,252.57,252.55,9.899]
[1737231971430,3.0,252.63,252.56,67.25612502]
[1737231971727,3.0,252.6,252.59,31.64836251]
[1737231972338,3.0,252.68,252.59,63.29672502]
[1737231972536,0.74192582,252.81,252.67,63.29672502]
[1737231972744,0.74175648,252.88,252.8,31.64836251]
[1737231972932,5.74175648,252.88,252.82,31.64836251]
[1737231973133,0.74175648,252.88,252.87,31.64836251]
[1737231973331,5.0,252.71,252.59,5.0]
[1737231973532,36.64836251,252.88,252.7,31.64836251]
[1737231973842,0.03,252.92,252.86,36.64836251]
[1737231974036,0.03,252.92,252.91,5.0]
[1737231974244,0.03,252.92,252.9,5.0]
[1737231974423,0.03,252.92,252.91,5.0]
[1737231974744,5.0,253.06,252.89,36.64836251]
[1737231974933,5.0,253.02,252.92,31.64836251]
[1737231975140,5.0,252.97,252.88,31.64836251]
[1737231975337,0.7414707,252.96,252.91,31.64836251]
[1737231975652,5.0,252.97,252.89,31.64836251]
[1737231975943,0.74145796,252.96,252.87,31.64836251]
[1737231976152,31.64836251,252.99,252.85,5.0]
[1737231976332,31.64836251,252.99,252.69,4.99993671]
[1737231976333,31.64836251,252.88,252.77,5.0]
[1737231976534,0.74172509,252.87,252.77,5.0]
[1737231976851,0.74172509,252.87,252.78,5.0]
[1737231977034,36.64836251,252.79,252.57,3.9591]
[1737231977239,31.64836251,252.74,252.61,31.64836251]
[1737231977546,31.64836251,252.72,252.58,36.64836251]
[1737231977739,31.64836251,252.63,252.48,5.0]
[1737231977944,0.74244912,252.69,252.63,5.0]
[1737231978252,31.64836251,252.77,252.66,5.0]
[1737231978548,15.838055,252.78,252.69,36.64836251]
[1737231978730,0.74186547,252.79,252.73,5.0]
[1737231978925,0.74186547,252.79,252.48,30.0]
[1737231978926,0.74183081,252.83,252.77,5.0]
[1737231979128,0.74166846,252.88,252.82,5.0]
[1737231979325,0.75830293,252.92,252.81,31.64836251]
[1737231979527,0.75830293,252.92,252.84,5.0]
[1737231979738,0.03,252.92,252.91,5.0]
[1737231980147,0.03,252.92,252.9,31.64836251]
[1737231980445,0.74131467,253.09,252.98,5.0]
[1737231980650,0.74109756,253.08,252.85,31.64836251]
[1737231980838,11.08138604,253.32,253.01,31.64836251]
[1737231980839,5.0,253.13,253.01,31.64836251]
[1737231981149,32.38939574,253.12,252.99,31.64836251]
[1737231981540,32.38939574,253.12,253.01,31.64836251]
[1737231981736,36.34019574,253.12,253.01,31.64836251]
[1737231981937,32.38939574,253.12,253.01,31.64836251]
[1737231982246,31.64836251,253.18,253.05,31.64836251]
[1737231982444,31.64836251,253.14,253.03,31.64836251]
[1737231982631,0.74097197,253.13,253.03,31.64836251]
[1737231982943,0.74097197,253.13,253.05,31.64836251]
[1737231983132,31.64836251,253.14,252.88,9.8859]
[1737231983443,0.74095201,253.13,253.07,31.64836251]
[1737231983648,4.69055979,253.18,253.07,31.64836251]
[1737231984144,0.74083138,253.23,253.07,20.0]
[1737231984346,36.33829389,253.23,253.12,31.64836251]
[1737231984555,36.33829389,253.23,253.08,31.64836251]
[1737231984556,31.64836251,253.19,253.08,31.64836251]
[1737231984739,0.74078829,253.18,253.08,31.64836251]
[1737231985636,0.74078829,253.18,253.08,17.63619101]
[1737231985831,0.74078829,253.18,253.1,31.64836251]
[1737231986032,31.64836251,253.16,253.05,31.64836251]
[1737231986231,0.74085279,253.15,253.05,31.64836251]
[1737231986828,0.74085279,253.15,253.07,31.64836251]
[1737231987030,0.74079654,253.17,253.07,31.64836251]
[1737231987442,31.64836251,253.16,253.05,31.64836251]
[1737231987638,8.9505,253.13,252.91,9.8848]
[1737231987843,31.64836251,253.08,252.96,31.64836251]
[1737231988046,0.74101405,253.07,252.98,31.64836251]
[1737231988351,0.74099071,253.15,253.06,31.64836251]
[1737231988544,0.74077731,253.16,253.1,31.64836251]
[1737231988855,0.7407716,253.18,253.1,31.64836251]
[1737231989553,0.74071259,253.2,253.12,31.64836251]
[1737231989859,0.74071259,253.2,253.14,31.64836251]
[1737231990158,0.74060841,253.31,253.18,31.64836251]
[1737231990356,0.74060841,253.31,253.24,31.64836251]
[1737231990542,11.82168029,253.32,253.24,31.64836251]
[1737231991243,11.08138604,253.32,253.26,31.64836251]
[1737231991535,11.08138604,253.32,253.24,31.64836251]
[1737231991536,4.68795033,253.31,253.24,31.64836251]
[1737231991744,0.74025033,253.31,253.3,31.64836251]
[1737231991948,31.64836251,253.41,253.12,33.5804]
[1737231992154,0.74022005,253.4,253.3,31.64836251]
[1737231992950,4.68662005,253.4,253.3,31.64836251]
[1737231993143,31.64836251,253.37,253.26,31.64836251]
[1737231993459,31.64836251,253.35,253.24,31.64836251]
[1737231993662,31.64836251,253.33,253.22,31.64836251]
[1737231993860,0.74035309,253.32,253.26,31.64836251]
[1737231994156,0.74035309,253.37,253.3,31.64836251]
[1737231994358,0.74035309,253.37,253.26,31.64836251]
[1737231994359,31.64836251,253.37,253.26,31.64836251]
[1737231994659,31.64836251,253.35,253.26,31.64836251]
[1737231994863,0.74026375,253.34,253.26,31.64836251]
[1737231995159,31.64836251,253.31,253.22,31.64836251]
[1737231995453,0.74041238,253.3,253.22,31.64836251]
[1737231995661,32.38874423,253.33,253.12,37.604184]
[1737231995838,32.38874423,253.33,253.22,31.64836251]
[1737231996235,31.64836251,253.31,253.2,31.64836251]
[1737231996453,31.64836251,253.26,253.15,31.64836251]
[1737231996741,0.74057678,253.25,253.17,31.64836251]
[1737231996938,13.8155,253.34,253.0,3.9525]
[1737231996939,31.64836251,253.18,253.0,3.9525]
[1737231997148,31.64836251,253.11,252.99,33.29456251]
[1737231997351,31.64836251,253.18,253.07,31.64836251]
[1737231997549,31.64836251,253.14,253.03,31.64836251]
[1737231997862,0.74092916,253.13,253.03,31.64836251]
[1737231998166,0.74084522,253.21,253.12,31.64836251]
[1737231998343,0.740655,253.21,253.14,31.64836251]
[1737231998660,31.64836251,253.24,253.14,31.64836251]
[1737231998841,0.74056774,253.23,253.14,31.64836251]
[1737231999560,4.68956774,253.23,253.15,5.0]
[1737231999758,4.68956774,253.23,253.12,31.64836251]
[1737232000062,31.64836251,253.22,253.12,31.64836251]
[1737232000253,3.949,253.23,253.12,5.0]
[1737232000567,31.64836251,253.27,253.18,5.0]
[1737232000858,35.59646251,253.29,253.22,5.0]
[1737232001167,0.74041136,253.28,253.22,5.0]
[1737232001348,0.74036301,253.3,253.22,5.0]
[1737232001552,0.74036301,253.3,253.2,34.93677844]
[1737232001748,0.74035535,253.34,253.24,31.64836251]
[1737232001950,31.64836251,253.33,253.22,31.64836251]
[1737232002263,31.64836251,253.27,253.18,31.64836251]